bitfinex/quotes_SOLUSD_20251120
["timestamp","ask_amount","ask_price","bid_price","bid_amount"]
[1763653742325,12.36229702,139.54,139.49,12.36229702]
[1763653742654,12.36229702,139.54,139.47,1.74]
[1763653742655,12.36229702,139.51,139.47,1.74]
[1763653742831,1.74,139.51,139.48,14.553261]
[1763653743033,2.42,139.51,139.48,9.78882769]
[1763653743358,2.42,139.51,139.44,37.78874816]
[1763653743359,0.68,139.5,139.46,12.36229702]
[1763653743541,0.68,139.5,139.45,12.36229702]
[1763653743542,13.04229702,139.5,139.45,12.36229702]
[1763653743742,12.36229702,139.47,139.37,7.17514529]
[1763653743930,18.12096,139.48,139.44,12.36229702]
[1763653744130,32.90325702,139.48,139.43,12.36229702]
[1763653744359,32.90325702,139.48,139.4,1.74]
[1763653744360,13.04229702,139.47,139.4,1.74]
[1763653744555,20.21237727,139.47,139.41,4.76937954]
[1763653744726,0.68,139.47,139.43,12.36229702]
[1763653744931,9.59012791,139.47,139.43,12.36229702]
[1763653745130,20.54096,139.47,139.43,12.36229702]
[1763653745775,27.71108152,139.47,139.43,12.36229702]
[1763653745930,1.74,139.47,139.44,9.78882769]
[1763653746258,14.78229702,139.49,139.45,9.78882769]
[1763653746463,19.86096,139.49,139.45,22.15112471]
[1763653746771,19.86096,139.49,139.47,12.36229702]
[1763653746772,1.74,139.49,139.47,12.36229702]
[1763653747068,0.68,139.55,139.49,9.78882769]
[1763653747364,18.12096,139.54,139.52,7.14012442]
[1763653747543,1.74,139.56,139.52,7.14012442]
[1763653747748,1.74,139.56,139.53,7.14012442]
[1763653747945,1.74,139.56,139.54,7.14012442]
[1763653748142,1.74,139.56,139.51,9.78882769]
[1763653748334,1.74,139.56,139.5,7.14012442]
[1763653748335,7.82012442,139.55,139.5,7.14012442]
[1763653748536,7.16640389,139.54,139.5,7.14012442]
[1763653748738,7.84640389,139.54,139.5,7.14012442]
[1763653748962,0.68,139.54,139.51,9.78882769]
[1763653749168,0.68,139.54,139.51,7.14012442]
[1763653749363,27.00108442,139.56,139.51,7.14012442]
[1763653749662,0.68,139.55,139.51,7.14012442]
[1763653750446,0.68,139.55,139.51,16.92895211]
[1763653750634,7.84592427,139.55,139.52,7.14012442]
[1763653750836,7.84592427,139.55,139.51,16.92895211]
[1763653751836,18.12096,139.56,139.53,7.14012442]
[1763653752040,1.74,139.58,139.52,9.78882769]
[1763653752270,1.74,139.58,139.53,4.78028859]
[1763653752451,8.90471835,139.58,139.55,16.92895211]
[1763653752655,2.42,139.58,139.55,16.92895211]
[1763653752847,0.68,139.58,139.56,9.78882769]
[1763653753046,0.68,139.64,139.57,7.14012442]
[1763653753298,7.14012442,139.61,139.54,1.74]
[1763653753475,7.14012442,139.59,139.55,4.78218708]
[1763653753774,1.74,139.6,139.55,9.78882769]
[1763653754072,7.14012442,139.58,139.53,16.92895211]
[1763653754371,7.82012442,139.59,139.54,7.14012442]
[1763653754581,14.98419786,139.59,139.54,14.30621293]
[1763653754871,7.14012442,139.57,139.53,9.78882769]
[1763653755075,7.14012442,139.57,139.52,9.78882769]
[1763653755076,1.74,139.57,139.52,9.78882769]
[1763653755244,7.82012442,139.56,139.52,9.78882769]
[1763653755451,7.82012442,139.56,139.51,16.92895211]
[1763653755664,1.74,139.57,139.52,4.78431891]
[1763653755870,8.88012442,139.57,139.52,7.14012442]
[1763653756077,7.82012442,139.56,139.51,16.92895211]
[1763653756244,7.14012442,139.53,139.48,7.14012442]
[1763653756567,7.14012442,139.53,139.49,14.57358819]
[1763653756568,14.30718144,139.53,139.49,14.57358819]
[1763653756778,14.30718144,139.53,139.49,16.95777639]
[1763653756947,1.74,139.54,139.49,24.09790081]
[1763653757156,7.82012442,139.53,139.49,9.78882769]
[1763653758093,7.14012442,139.53,139.49,9.78882769]
[1763653758259,26.82253325,139.54,139.46,8.91041647]
[1763653758260,7.14012442,139.51,139.46,8.91041647]
[1763653758582,14.98767385,139.52,139.47,28.88403907]
[1763653758896,14.98767385,139.52,139.47,16.92895211]
[1763653759684,14.98767385,139.52,139.47,9.78882769]
[1763653759685,7.14012442,139.51,139.47,9.78882769]
[1763653759857,32.90625183,139.52,139.47,16.92895211]
[1763653760062,14.98767385,139.52,139.47,16.92895211]
[1763653760557,14.98767385,139.52,139.47,9.78882769]
[1763653760558,7.14012442,139.51,139.47,9.78882769]
[1763653760763,7.14012442,139.5,139.47,9.78882769]
[1763653761090,7.82012442,139.5,139.47,9.78882769]
[1763653761382,7.82012442,139.5,139.46,1.74]
[1763653761758,7.82012442,139.5,139.46,9.78882769]
[1763653761958,1.74,139.51,139.41,9.78882769]
[1763653761959,7.14012442,139.48,139.41,9.78882769]
[1763653762191,1.74,139.48,139.43,9.78882769]
[1763653762499,8.88012442,139.5,139.45,16.92895211]
[1763653762792,8.90796549,139.51,139.49,7.14012442]
[1763653763260,9.58796549,139.51,139.47,9.78882769]
[1763653763465,0.68,139.5,139.47,7.14012442]
[1763653763771,9.58796549,139.51,139.46,9.78882769]
[1763653763976,9.58796549,139.51,139.47,7.14012442]
[1763653764166,7.84796549,139.51,139.48,7.14012442]
[1763653765489,0.68,139.5,139.47,7.14012442]
[1763653765656,1.74,139.49,139.43,9.78882769]
[1763653765860,8.88012442,139.49,139.44,7.14012442]
[1763653766157,1.74,139.52,139.48,7.14012442]
[1763653766367,1.74,139.52,139.46,9.78882769]
[1763653766368,2.42,139.52,139.49,7.14012442]
[1763653766869,2.42,139.52,139.49,14.30906011]
[1763653767070,0.68,139.54,139.51,7.14012442]
[1763653767382,1.74,139.55,139.51,7.14012442]
[1763653767569,2.42,139.55,139.51,7.14012442]
[1763653767774,0.68,139.54,139.5,7.14012442]
[1763653768385,1.74,139.55,139.52,7.14012442]
[1763653768795,0.68,139.6,139.55,9.78882769]
[1763653769000,1.74,139.61,139.57,7.14012442]
[1763653769165,0.68,139.6,139.55,9.78882769]
[1763653769367,0.68,139.6,139.56,7.14012442]
[1763653769582,0.68,139.6,139.57,7.14012442]
[1763653769783,0.68,139.6,139.52,13.08972971]
[1763653769784,7.14012442,139.59,139.52,5.94960529]
[1763653769992,0.68,139.6,139.52,5.94960529]
[1763653769993,0.68,139.6,139.57,7.14012442]
[1763653770164,0.68,139.6,139.56,7.14012442]
[1763653770677,7.14012442,139.59,139.54,7.14012442]
[1763653770862,7.16435019,139.58,139.54,7.14012442]
[1763653771059,7.14012442,139.59,139.54,7.14012442]
[1763653771258,0.71,139.59,139.55,16.92895211]
[1763653771487,7.16373458,139.6,139.57,7.14012442]
[1763653771662,0.71,139.6,139.57,7.14012442]
[1763653771866,0.71,139.59,139.55,9.78882769]
[1763653772083,0.71,139.59,139.56,7.14012442]
[1763653772282,0.71,139.59,139.55,16.92895211]
[1763653772966,9.61298352,139.61,139.57,7.14012442]
[1763653773283,0.71,139.6,139.57,7.14012442]
[1763653773477,1.74,139.61,139.58,7.14012442]
[1763653773682,0.71,139.6,139.56,9.78882769]
[1763653773873,0.71,139.6,139.55,7.14012442]
[1763653773874,7.85012442,139.6,139.55,7.14012442]
[1763653774080,0.71,139.6,139.55,7.14012442]
[1763653774390,0.71,139.6,139.56,7.14012442]
[1763653774589,0.71,139.6,139.57,7.14012442]
[1763653774971,1.74,139.61,139.58,7.14012442]
[1763653775471,0.71,139.6,139.58,7.14012442]
[1763653775696,1.74,139.62,139.58,7.14012442]
[1763653776005,0.71,139.61,139.58,7.14012442]
[1763653776180,0.2,139.65,139.6,7.14012442]
[1763653776499,0.2,139.65,139.64,7.14012442]
[1763653776706,0.2,139.65,139.64,16.92895211]
[1763653777068,0.2,139.65,139.64,24.09022395]
[1763653777776,0.2,139.65,139.64,9.78882769]
[1763653778093,0.2,139.65,139.64,16.92895211]
[1763653778337,0.2,139.65,139.64,24.09022395]
[1763653779179,0.2,139.67,139.64,24.09022395]
[1763653779180,0.2,139.67,139.66,27.90978769]
[1763653779404,0.2,139.74,139.67,27.90978769]
[1763653779610,0.2,139.74,139.73,16.92895211]
[1763653779809,0.2,139.74,139.73,9.78882769]
[1763653780022,0.91,139.74,139.67,18.12096]
[1763653780182,15.20627155,139.74,139.68,9.78882769]
[1763653780380,7.85012442,139.73,139.67,9.78882769]
[1763653780609,7.14012442,139.71,139.6,28.54657307]
[1763653780786,25.26108442,139.71,139.66,9.78882769]
[1763653780985,7.86819613,139.7,139.66,7.14012442]
[1763653781184,0.71,139.7,139.66,7.14012442]
[1763653781490,18.12096,139.7,139.69,9.78882769]
[1763653781692,18.83096,139.7,139.67,7.14012442]
[1763653781902,18.83096,139.7,139.68,9.78882769]
[1763653782114,0.71,139.69,139.62,7.16195275]
[1763653782409,0.71,139.69,139.65,7.14012442]
[1763653782586,0.71,139.69,139.66,9.78882769]
[1763653783014,7.86898103,139.69,139.66,9.78882769]
[1763653783187,0.71,139.69,139.66,7.14012442]
[1763653783390,0.71,139.69,139.65,9.78882769]
[1763653783721,32.90563096,139.69,139.62,9.78882769]
[1763653783891,0.71,139.68,139.64,9.78882769]
[1763653784087,0.71,139.68,139.64,16.92895211]
[1763653784289,7.14012442,139.67,139.61,7.14012442]
[1763653784597,18.12096,139.67,139.63,7.14012442]
[1763653784793,0.71,139.66,139.62,16.92895211]
[1763653785200,7.16075904,139.65,139.62,16.92895211]
[1763653785715,0.71,139.64,139.62,16.92895211]
[1763653786100,0.71,139.64,139.6,7.14012442]
[1763653786425,7.16075904,139.65,139.63,7.14012442]
[1763653786930,7.16075904,139.65,139.59,9.78882769]
[1763653786931,7.87075904,139.65,139.62,7.14012442]
[1763653787222,18.12096,139.67,139.64,7.14012442]
[1763653787387,18.83096,139.67,139.64,7.14012442]
[1763653787593,0.71,139.66,139.61,9.78882769]
[1763653787794,0.71,139.66,139.63,7.14012442]
[1763653788127,0.71,139.66,139.62,7.14012442]
[1763653788425,0.71,139.71,139.66,9.78882769]
[1763653788608,0.71,139.7,139.64,9.78882769]
[1763653788804,25.97108442,139.7,139.65,7.14012442]
[1763653789030,8.88012442,139.69,139.63,7.14012442]
[1763653789206,7.15922107,139.68,139.63,7.14012442]
[1763653789408,25.76727376,139.68,139.63,7.14012442]
[1763653789615,0.71,139.67,139.63,7.14012442]
[1763653789800,0.71,139.67,139.64,7.14012442]
[1763653790529,0.71,139.67,139.6,9.78882769]
[1763653790530,7.85012442,139.67,139.6,9.78882769]
[1763653790709,7.85012442,139.67,139.62,9.78882769]
[1763653790899,0.67,139.66,139.62,9.78882769]
[1763653791102,25.26108442,139.65,139.6,7.14012442]
[1763653791320,7.16127184,139.64,139.6,7.14012442]
[1763653791542,7.16127184,139.64,139.61,7.14012442]
[1763653791543,7.83127184,139.64,139.61,7.14012442]
[1763653791822,0.67,139.64,139.62,16.92895211]
[1763653792133,18.12096,139.65,139.62,16.92895211]
[1763653792300,0.67,139.64,139.62,9.78882769]
[1763653793194,7.16178471,139.63,139.61,16.92895211]
[1763653793722,7.83178471,139.63,139.61,16.92895211]
[1763653793921,7.83178471,139.63,139.61,9.78882769]
[1763653794130,7.83178471,139.63,139.61,7.14012442]
[1763653794301,0.67,139.62,139.59,16.92895211]
[1763653795191,7.16281068,139.61,139.59,16.92895211]
[1763653795391,7.16281068,139.61,139.59,9.78882769]
[1763653795708,7.83281068,139.61,139.58,7.14012442]
[1763653797022,0.67,139.6,139.55,7.14012442]
[1763653797221,7.16383695,139.59,139.55,7.14012442]
[1763653797713,0.67,139.58,139.55,7.14012442]
[1763653798522,19.86096,139.6,139.56,7.14012442]
[1763653798832,0.67,139.58,139.56,9.78882769]
[1763653799203,0.67,139.58,139.54,7.16640079]
[1763653799404,7.83456964,139.58,139.56,9.78882769]
[1763653800104,7.16456964,139.58,139.56,9.78882769]
[1763653800430,0.67,139.58,139.56,9.78882769]
[1763653800796,0.67,139.58,139.52,26.82597797]
[1763653800996,0.67,139.58,139.55,16.92895211]
[1763653801220,18.12096,139.59,139.53,9.78882769]
[1763653801441,7.14012442,139.56,139.53,9.78882769]
[1763653801603,0.67,139.55,139.52,9.78882769]
[1763653801937,2.41,139.55,139.51,9.78882769]
[1763653802471,2.41,139.55,139.5,16.92895211]
[1763653802472,0.67,139.54,139.5,16.92895211]
[1763653802932,7.81012442,139.54,139.5,9.78882769]
[1763653803326,0.67,139.57,139.53,7.14012442]
[1763653803738,7.83499268,139.57,139.54,16.92895211]
[1763653803943,14.9751171,139.57,139.51,9.78882769]
[1763653804143,0.67,139.56,139.53,9.78882769]
[1763653804569,0.67,139.56,139.52,7.14012442]
[1763653804570,8.90453818,139.58,139.55,9.78882769]
[1763653804769,7.81012442,139.57,139.49,1.74]
[1763653804931,26.81541366,139.58,139.51,7.14012442]
[1763653804932,7.81012442,139.56,139.51,7.14012442]
[1763653805132,7.14012442,139.54,139.49,7.14012442]
[1763653805431,7.14012442,139.54,139.47,7.14012442]
[1763653805432,7.14012442,139.52,139.47,7.14012442]
[1763653805644,7.81012442,139.51,139.46,7.14012442]
[1763653805963,7.81012442,139.5,139.45,7.14012442]
[1763653806254,1.74,139.49,139.46,7.14012442]
[1763653806462,2.41,139.49,139.45,7.14012442]
[1763653806639,0.67,139.48,139.45,7.14012442]
[1763653806843,0.67,139.48,139.46,9.78882769]
[1763653807041,0.67,139.48,139.4,7.1735732]
[1763653807042,13.10551769,139.48,139.4,7.1735732]
[1763653807238,13.10551769,139.48,139.38,17.93609015]
[1763653807239,0.67,139.47,139.43,12.43551769]
[1763653807446,7.17051484,139.46,139.43,22.22434538]
[1763653807842,7.84051484,139.46,139.43,22.22434538]
[1763653808040,0.67,139.45,139.43,9.78882769]
[1763653808378,7.84051484,139.46,139.43,9.78882769]
[1763653808561,0.67,139.45,139.42,12.43551769]
[1763653808858,12.43551769,139.44,139.4,9.78882769]
[1763653809057,12.43551769,139.44,139.39,12.53551769]
[1763653809259,0.67,139.43,139.4,9.78882769]
[1763653809447,7.84254156,139.43,139.4,9.78882769]
[1763653809959,0.67,139.43,139.4,22.22434538]
[1763653810380,0.67,139.43,139.39,0.1]
[1763653810381,1.74,139.42,139.39,0.1]
[1763653810535,12.43551769,139.4,139.39,0.1]
[1763653810937,0.67,139.4,139.39,0.1]
[1763653811359,18.12096,139.41,139.39,0.1]
[1763653811581,1.74,139.43,139.4,9.78882769]
[1763653811780,2.41,139.43,139.39,22.32434538]
[1763653812076,0.67,139.42,139.39,12.53551769]
[1763653812245,0.67,139.42,139.39,0.1]
[1763653812439,13.10551769,139.42,139.39,0.1]
[1763653812647,12.43551769,139.41,139.39,0.1]
[1763653812856,13.10551769,139.41,139.39,0.1]
[1763653813166,0.67,139.4,139.39,0.1]
[1763653813665,7.84360114,139.4,139.39,0.1]
[1763653813838,0.67,139.4,139.39,0.1]
[1763653814538,0.67,139.45,139.39,24.06434538]
[1763653814751,12.43551769,139.45,139.41,9.78882769]
[1763653814955,2.41,139.44,139.41,9.78882769]
[1763653815361,2.41,139.44,139.39,0.1]
[1763653815362,0.67,139.43,139.39,12.53551769]
[1763653815563,1.74,139.44,139.41,9.78882769]
[1763653815753,1.74,139.44,139.4,12.43551769]
[1763653815754,2.41,139.44,139.4,12.43551769]
[1763653815940,0.67,139.43,139.41,9.78882769]
[1763653816143,18.12096,139.46,139.41,22.22434538]
[1763653816367,2.41,139.48,139.43,22.22434538]
[1763653816567,13.10551769,139.47,139.43,9.78882769]
[1763653816773,0.67,139.47,139.43,22.22434538]
[1763653816948,34.86944395,139.55,139.46,12.43551769]
[1763653816949,0.67,139.5,139.46,12.43551769]
[1763653817160,14.84551769,139.53,139.48,12.43551769]
[1763653817364,12.43551769,139.51,139.47,9.78882769]
[1763653817688,8.90845878,139.5,139.47,9.78882769]
[1763653817894,9.57845878,139.5,139.47,9.78882769]
[1763653818094,0.67,139.49,139.45,12.43551769]
[1763653818477,12.43551769,139.46,139.39,9.88882769]
[1763653818705,12.43551769,139.46,139.41,9.78882769]
[1763653818706,1.74,139.45,139.41,9.78882769]
[1763653818862,1.74,139.45,139.41,22.22434538]
[1763653819069,0.67,139.48,139.44,9.78882769]
[1763653819266,2.41,139.48,139.44,9.78882769]
[1763653819667,1.74,139.48,139.44,22.22434538]
[1763653820086,0.67,139.47,139.44,22.22434538]
[1763653820591,0.67,139.47,139.43,12.43551769]
[1763653821087,18.12096,139.5,139.45,12.43551769]
[1763653821088,7.84902391,139.49,139.45,12.43551769]
[1763653821274,0.68,139.52,139.47,22.22434538]
[1763653821478,1.74,139.52,139.49,12.43551769]
[1763653821680,0.68,139.53,139.5,22.22434538]
[1763653821889,0.68,139.56,139.51,12.43551769]
[1763653822093,0.68,139.56,139.53,22.22434538]
[1763653822412,13.11551769,139.56,139.51,12.43551769]
[1763653822700,13.11551769,139.56,139.46,18.12096]
[1763653822701,12.43551769,139.54,139.49,12.43551769]
[1763653822909,1.74,139.55,139.43,18.12096]
[1763653822910,12.43551769,139.5,139.43,18.12096]
[1763653823064,14.17551769,139.49,139.45,9.78882769]
[1763653823270,1.74,139.49,139.45,22.22434538]
[1763653823479,0.68,139.48,139.42,9.78882769]
[1763653823683,7.17000071,139.47,139.43,12.43551769]
[1763653823903,1.74,139.46,139.42,22.22434538]
[1763653824197,2.42,139.46,139.42,22.22434538]
[1763653824689,2.42,139.46,139.43,12.43551769]
[1763653825069,1.74,139.46,139.43,12.43551769]
[1763653825366,2.42,139.48,139.42,16.96135712]
[1763653825667,1.74,139.48,139.45,12.43551769]
[1763653825892,12.43551769,139.46,139.32,89.35417507]
[1763653826201,12.43551769,139.41,139.34,7.17625591]
[1763653826489,19.86096,139.45,139.32,18.04359751]
[1763653826490,18.12096,139.37,139.32,0.1]
[1763653826688,18.12096,139.37,139.26,0.1]
[1763653826689,12.43551769,139.34,139.26,0.1]
[1763653826891,12.43551769,139.27,139.26,0.1]
[1763653827064,12.43551769,139.27,139.25,0.1]
[1763653827065,32.29647769,139.27,139.25,0.1]
[1763653827266,13.11551769,139.26,139.18,12.43551769]
[1763653827589,13.11551769,139.26,139.19,12.43551769]
[1763653827590,7.18132854,139.25,139.19,12.43551769]
[1763653827792,1.74,139.24,139.21,12.43551769]
[1763653828431,36.07139914,139.28,139.23,12.43551769]
[1763653828432,0.68,139.28,139.23,12.43551769]
[1763653828601,1.74,139.28,139.24,12.43551769]
[1763653828906,1.74,139.28,139.23,9.78882769]
[1763653828907,0.68,139.3,139.26,12.43551769]
[1763653829068,1.74,139.29,139.26,12.43551769]
[1763653829268,12.43551769,139.28,139.23,12.43551769]
[1763653829563,1.74,139.29,139.25,12.43551769]
[1763653829764,0.68,139.3,139.27,9.78882769]
[1763653830075,1.74,139.33,139.28,12.43551769]
[1763653830274,0.68,139.32,139.28,12.43551769]
[1763653830577,12.43551769,139.29,139.24,12.43551769]
[1763653830783,1.74,139.28,139.22,7.1825193]
[1763653830972,14.85551769,139.28,139.23,12.43551769]
[1763653831294,2.42,139.28,139.23,12.43551769]
[1763653831490,12.43551769,139.3,139.25,12.43551769]
[1763653831692,1.74,139.29,139.25,7.18084605]
[1763653831893,1.74,139.29,139.26,12.43551769]
[1763653832101,0.68,139.35,139.28,12.43551769]
[1763653832306,0.68,139.35,139.31,12.43551769]
[1763653832508,0.68,139.35,139.25,43.25512741]
[1763653832509,0.68,139.35,139.3,12.43551769]
[1763653832886,13.11551769,139.35,139.3,12.43551769]
[1763653833080,0.68,139.34,139.31,12.43551769]
[1763653833288,12.43551769,139.32,139.26,12.43551769]
[1763653833495,14.17551769,139.33,139.28,12.43551769]
[1763653833693,7.85772035,139.32,139.28,12.43551769]
[1763653833882,20.29323804,139.32,139.27,12.43551769]
[1763653834090,19.61323804,139.32,139.27,12.43551769]
[1763653834287,0.68,139.31,139.26,22.22434538]
[1763653834612,0.68,139.31,139.26,12.43551769]
[1763653834816,1.74,139.3,139.27,12.43551769]
[1763653834989,1.74,139.3,139.28,12.43551769]
[1763653835414,0.68,139.32,139.25,7.58128447]
[1763653835415,0.68,139.32,139.26,9.78882769]
[1763653835596,18.12096,139.37,139.24,27.90978769]
[1763653835597,0.68,139.37,139.31,19.61364394]
[1763653835802,2.42,139.36,139.32,12.43551769]
[1763653836188,2.42,139.36,139.28,12.43551769]
[1763653836189,12.43551769,139.33,139.28,12.43551769]
[1763653836392,0.68,139.32,139.28,12.43551769]
[1763653836606,0.68,139.32,139.29,12.43551769]
[1763653836810,1.74,139.33,139.29,12.43551769]
[1763653837006,2.42,139.33,139.29,12.43551769]
[1763653837312,1.74,139.33,139.3,22.22434538]
[1763653837498,1.74,139.33,139.31,12.43551769]
[1763653837693,0.68,139.33,139.3,22.22434538]
[1763653837887,9.59580785,139.36,139.32,12.43551769]
[1763653838087,0.68,139.35,139.3,22.22434538]
[1763653838288,0.68,139.35,139.26,0.4]
[1763653838490,12.43551769,139.27,139.21,12.43551769]
[1763653838835,1.76,139.27,139.24,12.43551769]
[1763653839191,2.44,139.27,139.24,12.43551769]
[1763653839597,1.76,139.27,139.25,12.43551769]
[1763653839802,0.68,139.31,139.26,12.43551769]
[1763653840007,0.68,139.3,139.27,12.43551769]
[1763653840312,0.68,139.33,139.28,12.43551769]
[1763653840503,2.44,139.32,139.28,12.43551769]
[1763653840899,0.68,139.31,139.28,12.43551769]
[1763653841501,0.68,139.31,139.27,12.43551769]
[1763653841796,1.76,139.32,139.29,12.43551769]
[1763653842001,1.76,139.32,139.3,12.43551769]
[1763653842925,13.11551769,139.31,139.25,9.78882769]
[1763653843129,13.11551769,139.31,139.25,22.22434538]
[1763653843130,12.43551769,139.3,139.25,22.22434538]
[1763653843468,12.43551769,139.28,139.23,12.43551769]
[1763653843804,7.86033707,139.27,139.23,12.43551769]
[1763653844150,13.11551769,139.27,139.21,14.19551769]
[1763653844311,14.87551769,139.26,139.2,12.43551769]
[1763653844504,14.87551769,139.26,139.2,19.61904046]
[1763653844707,0.68,139.25,139.2,7.18352277]
[1763653845004,1.76,139.26,139.22,12.43551769]
[1763653845207,2.44,139.26,139.21,22.22434538]
[1763653845922,0.68,139.25,139.21,29.40731614]
[1763653846230,1.76,139.26,139.23,22.22434538]
[1763653846404,1.76,139.28,139.23,22.22434538]
[1763653846599,1.76,139.28,139.23,9.78882769]
[1763653846803,0.68,139.27,139.23,22.22434538]
[1763653847002,0.68,139.27,139.23,9.78882769]
[1763653847221,0.68,139.27,139.23,22.22434538]
[1763653847428,13.11551769,139.27,139.21,31.16773583]
[1763653847629,13.11551769,139.27,139.21,23.98434538]
[1763653847842,20.29679928,139.26,139.2,19.61933798]
[1763653848031,1.76,139.25,139.2,19.61933798]
[1763653848335,2.44,139.25,139.2,12.43551769]
[1763653848519,2.44,139.25,139.2,19.61934039]
[1763653848722,0.68,139.24,139.2,19.61934039]
[1763653848922,2.44,139.25,139.21,12.43551769]
[1763653849647,1.76,139.25,139.21,12.43551769]
[1763653849821,1.76,139.25,139.22,7.18287602]
[1763653850023,2.44,139.25,139.21,12.43551769]
[1763653850533,2.44,139.25,139.18,12.43551769]
[1763653850534,12.43551769,139.23,139.18,12.43551769]
[1763653850842,13.10551769,139.24,139.18,12.43551769]
[1763653851042,1.76,139.25,139.2,12.43551769]
[1763653851212,2.43,139.26,139.22,12.43551769]
[1763653851416,0.67,139.25,139.21,12.43551769]
[1763653851639,0.67,139.25,139.19,1.76]
[1763653851841,13.10551769,139.25,139.2,12.43551769]
[1763653852050,1.76,139.26,139.22,12.43551769]
[1763653852346,1.99999999,139.36,139.21,9.78882769]
[1763653852347,14.19551769,139.29,139.21,9.78882769]
[1763653852644,0.67,139.28,139.24,12.43551769]
[1763653853319,13.10551769,139.28,139.23,12.43551769]
[1763653853632,0.67,139.28,139.23,12.43551769]
[1763653853940,0.67,139.27,139.25,7.18132854]
[1763653854142,1.76,139.28,139.25,19.61684623]
[1763653854346,2.43,139.28,139.25,12.43551769]
[1763653854525,0.67,139.27,139.23,9.78882769]
[1763653854729,0.67,139.27,139.24,12.43551769]
[1763653855658,0.67,139.27,139.19,12.43551769]
[1763653855659,30.55647769,139.25,139.19,12.43551769]
[1763653855965,7.18236012,139.23,139.19,12.43551769]
[1763653856320,7.18236012,139.23,139.19,11.43551769]
[1763653856522,0.67,139.22,139.19,18.61992212]
[1763653856722,0.67,139.22,139.19,11.43551769]
[1763653857234,13.10551769,139.22,139.17,12.43551769]
[1763653857732,12.43551769,139.23,139.18,12.43551769]
[1763653857939,0.67,139.22,139.18,12.43551769]
[1763653858247,0.67,139.22,139.18,19.62025673]
[1763653858952,7.85295446,139.22,139.18,19.6203594]
[1763653859131,0.67,139.22,139.19,12.43551769]
[1763653859639,7.8529513,139.22,139.18,19.6203594]
[1763653859843,0.67,139.22,139.18,19.6203594]
[1763653860054,1.76,139.24,139.2,12.43551769]
[1763653860360,13.10551769,139.23,139.15,10.07882769]
[1763653860555,13.10551769,139.23,139.17,12.43551769]
[1763653860556,12.43551769,139.22,139.17,12.43551769]
[1763653860731,1.76,139.21,139.17,12.43551769]
[1763653860929,2.43,139.21,139.17,12.43551769]
[1763653861357,0.67,139.2,139.17,12.43551769]
[1763653861663,0.67,139.2,139.15,11.54882769]
[1763653861875,0.67,139.2,139.1,0.1]
[1763653862030,12.43551769,139.13,139.1,0.1]
[1763653862244,21.38265281,139.14,139.1,0.1]
[1763653862448,1.76,139.13,139.1,9.88882769]
[1763653862650,9.78882769,139.23,139.1,9.88882769]
[1763653862651,0.67,139.19,139.13,9.78882769]
[1763653862948,1.76,139.18,139.13,22.22434538]
[1763653863173,1.76,139.18,139.13,9.78882769]
[1763653863381,1.76,139.18,139.15,12.43551769]
[1763653863963,1.76,139.18,139.13,11.83882769]
[1763653864164,0.67,139.17,139.1,0.39]
[1763653864365,13.10551769,139.17,139.12,12.43551769]
[1763653864670,12.43551769,139.16,139.11,12.43551769]
[1763653864857,2.43,139.15,139.11,12.43551769]
[1763653865054,1.47,139.18,139.14,12.43551769]
[1763653865251,0.67,139.29,139.21,18.12096]
[1763653865475,11.85834505,139.4,139.26,12.43551769]
[1763653865476,14.19551769,139.32,139.26,12.43551769]
[1763653865680,14.19551769,139.32,139.29,12.43551769]
[1763653865681,0.67,139.32,139.29,12.43551769]
[1763653865860,16.19012425,139.36,139.31,12.43551769]
[1763653865861,16.86012425,139.36,139.31,12.43551769]
[1763653866195,0.67,139.36,139.34,12.43551769]
[1763653866488,1.76,139.39,139.35,12.43551769]
[1763653866655,1.76,139.39,139.3,14.19551769]
[1763653866656,0.67,139.38,139.34,12.43551769]
[1763653866859,0.67,139.38,139.35,12.43551769]
[1763653867054,0.67,139.38,139.29,18.12096]
[1763653867268,0.67,139.38,139.35,12.43551769]
[1763653867467,0.67,139.4,139.37,12.43551769]